bitfinex-derivatives/quotes_SOLF0:USTF0_20250514
["timestamp","ask_amount","ask_price","bid_price","bid_amount"]
[1747229273982,59.84,179.51,179.44,61.6757]
[1747229274284,5.5703,179.5,179.46,5.5712]
[1747229274484,59.84,179.51,179.46,5.5712]
[1747229274782,59.84,179.51,179.44,59.88]
[1747229274972,5.5707,179.49,179.45,5.5714]
[1747229275176,5.5707,179.49,179.44,59.88]
[1747229275775,5.5702,179.5,179.44,59.88]
[1747229275980,59.84,179.51,179.44,59.88]
[1747229276180,5.5703,179.5,179.47,5.5709]
[1747229277383,65.4099,179.51,179.48,5.5707]
[1747229277786,59.84,179.51,179.44,59.88]
[1747229278080,59.84,179.5,179.44,59.88]
[1747229278477,119.72,179.54,179.45,1.876]
[1747229279687,119.72,179.54,179.51,5.5696]
[1747229279983,119.72,179.54,179.45,1.876]
[1747229280377,119.72,179.54,179.44,59.88]
[1747229280880,119.72,179.54,179.48,5.5705]
[1747229281081,119.72,179.54,179.44,59.88]
[1747229281284,5.5698,179.52,179.48,5.5705]
[1747229281488,5.5698,179.52,179.44,59.88]
[1747229281785,5.5702,179.5,179.47,5.5709]
[1747229282087,119.72,179.54,179.44,59.88]
[1747229282287,125.2891,179.54,179.51,5.5696]
[1747229282584,119.72,179.54,179.44,119.7]
[1747229283089,119.72,179.54,179.52,5.5694]
[1747229283287,119.72,179.54,179.44,119.7]
[1747229283485,125.289,179.54,179.51,5.5696]
[1747229284188,119.72,179.54,179.44,119.7]
[1747229284586,119.72,179.54,179.52,5.5692]
[1747229284780,119.72,179.54,179.44,119.7]
[1747229284983,59.84,179.54,179.44,119.7]
[1747229285183,65.4091,179.54,179.51,5.5698]
[1747229285691,5.5697,179.52,179.45,1.8437]
[1747229285888,59.84,179.54,179.45,1.8437]
[1747229288086,5.5691,179.54,179.45,1.8437]
[1747229288288,59.82,179.54,179.45,1.8437]
[1747229288590,59.82,179.54,179.46,1.874]
[1747229288887,59.82,179.55,179.46,1.874]
[1747229289094,59.82,179.55,179.53,5.569]
[1747229289995,59.82,179.55,179.49,59.82]
[1747229290788,5.5694,179.53,179.5,5.5701]
[1747229291693,5.5696,179.52,179.49,65.3903]
[1747229291889,59.82,179.55,179.45,1.8437]
[1747229292294,5.5695,179.52,179.45,1.8437]
[1747229292594,59.82,179.55,179.45,1.8437]
[1747229292793,5.569,179.54,179.51,5.5698]
[1747229293097,59.82,179.55,179.45,1.8437]
[1747229293291,59.8,179.55,179.45,1.8437]
[1747229293894,59.8,179.55,179.53,5.569]
[1747229294090,59.8,179.55,179.49,59.82]
[1747229295197,59.8,179.55,179.45,61.6637]
[1747229296097,5.5693,179.53,179.5,5.5701]
[1747229296391,59.8,179.55,179.5,5.5701]
[1747229296594,5.5691,179.54,179.51,5.5698]
[1747229296795,59.8,179.55,179.45,61.6637]
[1747229298586,65.3687,179.55,179.45,61.6637]
[1747229299401,59.8,179.55,179.45,61.6637]
[1747229299705,59.8,179.55,179.53,5.569]
[1747229299902,59.8,179.55,179.45,61.6637]
[1747229300102,5.5691,179.54,179.45,61.6637]
[1747229300902,261.61922332,179.58,179.45,61.6637]
[1747229301092,201.79922332,179.58,179.45,71.40475596]
[1747229301299,41.63454675,179.73,179.48,9.74105596]
[1747229301300,375.47955596,179.65,179.48,9.74105596]
[1747229301498,5.5663,179.63,179.5,11.14]
[1747229301703,5.5663,179.63,179.51,61.7015]
[1747229301898,59.78,179.64,179.51,61.7015]
[1747229302099,59.78,179.64,179.52,1.8617]
[1747229302300,9.74105596,179.62,179.52,1.8617]
[1747229302505,9.74105596,179.59,179.53,5.5691]
[1747229302804,59.78,179.58,179.53,5.5691]
[1747229303306,5.5682,179.57,179.53,5.5691]
[1747229303505,59.78,179.58,179.52,7.4312]
[1747229303700,59.78,179.58,179.51,1.9015]
[1747229304306,5.5685,179.56,179.52,5.5694]
[1747229304705,59.78,179.58,179.53,5.5691]
[1747229304905,5.5681,179.57,179.51,1.9015]
[1747229305206,59.78,179.58,179.51,1.9015]
[1747229305805,65.3479,179.58,179.54,5.5688]
[1747229306005,65.3479,179.58,179.51,1.9015]
[1747229306006,59.78,179.58,179.51,1.9015]
[1747229306307,5.5681,179.57,179.51,1.9015]
[1747229306503,59.78,179.58,179.51,1.9015]
[1747229306703,59.8,179.61,179.51,1.9015]
[1747229306905,65.3272,179.6,179.51,1.9015]
[1747229307908,65.3272,179.6,179.57,5.5679]
[1747229308299,5.5667,179.61,179.51,1.9015]
[1747229308503,59.76,179.6,179.51,1.9015]
[1747229308705,59.8,179.63,179.51,1.9015]
[1747229309007,5.5671,179.6,179.51,1.9015]
[1747229309499,5.5671,179.6,179.56,5.5682]
[1747229309703,5.5671,179.6,179.51,1.9015]
[1747229310711,5.5671,179.6,179.56,5.5681]
[1747229311303,59.74,179.62,179.55,5.5686]
[1747229311504,69.48105596,179.62,179.51,1.9015]
[1747229312005,5.5677,179.58,179.54,5.5687]
[1747229312809,5.5675,179.59,179.55,5.5685]
[1747229313609,69.48105596,179.62,179.51,1.9015]
[1747229313807,59.74,179.62,179.51,1.9015]
[1747229314312,65.3065,179.62,179.51,1.9015]
[1747229315010,5.5667,179.61,179.51,1.9015]
[1747229315519,65.2867,179.61,179.51,1.9015]
[1747229315711,65.2867,179.61,179.57,5.5678]
[1747229316413,65.2867,179.61,179.55,59.72]
[1747229317112,65.2867,179.61,179.57,5.5677]
[1747229317319,59.72,179.61,179.55,59.72]
[1747229318508,65.3662,179.63,179.6,5.567]
[1747229318710,119.52,179.63,179.55,59.72]
[1747229318911,125.0862,179.63,179.59,5.5671]
[1747229320015,119.52,179.63,179.6,5.5669]
[1747229320211,59.8,179.63,179.6,5.5669]
[1747229320414,119.5,179.63,179.6,5.5669]
[1747229320713,125.0662,179.63,179.6,5.5669]
[1747229321919,65.2662,179.63,179.6,5.5669]
[1747229322119,59.7,179.65,179.55,59.72]
[1747229322315,59.7,179.65,179.56,3.6251]
[1747229322516,59.7,179.67,179.65,5.5654]
[1747229322914,59.7,179.67,179.6,59.7]
[1747229323115,59.7,179.67,179.64,5.5657]
[1747229323621,65.265,179.67,179.63,5.5661]
[1747229323822,59.7,179.67,179.6,59.7]
[1747229324223,65.2651,179.67,179.63,5.5661]
[1747229324521,59.7,179.67,179.63,5.5661]
[1747229325619,59.7,179.67,179.6,59.7]
[1747229325825,59.68,179.71,179.6,119.38]
[1747229326025,59.68,179.71,179.62,9.74105596]
[1747229326228,59.68,179.71,179.63,3.5329]
[1747229326527,9.74105596,179.75,179.63,3.5329]
[1747229326826,59.68,179.74,179.63,3.5329]
[1747229327228,5.5633,179.72,179.69,5.5641]
[1747229327427,59.68,179.74,179.69,5.5641]
[1747229327727,59.68,179.74,179.67,59.7]
[1747229327926,59.68,179.73,179.67,59.7]
[1747229328721,59.68,179.73,179.7,5.5637]
[1747229329228,59.68,179.73,179.69,5.5641]
[1747229330030,5.5633,179.72,179.69,5.5641]
[1747229330217,59.68,179.73,179.7,5.5638]
[1747229330422,59.68,179.73,179.67,59.7]
[1747229331223,65.2433,179.73,179.67,59.7]
[1747229331426,59.68,179.73,179.69,5.564]
[1747229331734,65.2431,179.73,179.67,59.7]
[1747229332026,65.2431,179.73,179.69,5.564]
[1747229332529,65.2431,179.73,179.7,5.5639]
[1747229332725,59.68,179.73,179.67,59.7]
[1747229332923,59.64,179.76,179.67,59.7]
[1747229333129,59.64,179.76,179.68,1.8521]
[1747229333525,423.64,179.78,179.68,1.8521]
[1747229333732,59.64,179.78,179.68,1.8521]
[1747229334120,59.64,179.78,179.75,5.5622]
[1747229335530,65.2016,179.78,179.74,5.5626]
[1747229335829,65.2016,179.78,179.72,59.68]
[1747229336032,59.64,179.78,179.75,5.5621]
[1747229336727,59.68,179.81,179.72,59.68]
[1747229336926,59.62,179.81,179.72,59.68]
[1747229337734,7.3614,179.84,179.72,59.68]
[1747229337932,59.6,179.83,179.72,59.68]
[1747229338329,5.5587,179.87,179.74,9.74105596]
[1747229338530,65.1587,179.87,179.75,61.3785]
[1747229338727,59.6,179.87,179.75,61.3785]
[1747229339031,5.5596,179.85,179.81,5.5605]
[1747229339232,59.6,179.86,179.78,59.66]
[1747229340629,65.1591,179.86,179.78,59.66]
[1747229341134,59.6,179.86,179.78,59.66]
[1747229341726,15.29915596,179.89,179.85,5.5593]
[1747229342125,69.32105596,179.89,179.79,3.5385]
[1747229342733,9.74105596,179.89,179.79,3.5385]
[1747229343036,5.5589,179.87,179.83,5.5597]
[1747229343436,5.5589,179.87,179.79,3.5385]
[1747229343635,59.58,179.88,179.79,3.5385]
[1747229344137,376.68957584,179.9,179.79,3.5385]
[1747229344332,59.56,179.91,179.8,69.30105596]
[1747229344933,59.56,179.91,179.89,5.5579]
[1747229345439,59.56,179.91,179.86,59.64]
[1747229345745,9.74105596,179.94,179.86,59.64]
[1747229345936,59.56,179.93,179.86,59.64]
[1747229346140,5.5572,179.92,179.86,59.64]
[1747229346337,59.56,179.93,179.86,59.64]
[1747229346539,59.56,179.92,179.86,59.64]
[1747229350238,5.558,179.9,179.87,5.5584]
[1747229351144,65.1174,179.92,179.88,5.5582]
[1747229351344,9.74105596,179.91,179.86,59.64]
[1747229351541,11.55375596,179.91,179.82,59.52]
[1747229351747,9.74105596,179.88,179.82,59.52]
[1747229352043,59.52,179.87,179.82,59.52]
[1747229352239,5.5595,179.85,179.82,65.0801]
[1747229352738,59.52,179.87,179.82,59.52]
[1747229353641,5.5592,179.86,179.83,5.5599]
[1747229353846,59.52,179.87,179.82,59.52]
[1747229354545,65.0788,179.87,179.84,5.5594]
[1747229354848,59.52,179.87,179.82,59.52]
[1747229355447,59.52,179.87,179.78,59.52]
[1747229355644,5.5594,179.85,179.83,5.5599]
[1747229355844,59.52,179.87,179.78,59.52]
[1747229356245,59.52,179.87,179.79,1.9201]
[1747229356848,59.52,179.87,179.83,5.5597]
[1747229357243,59.52,179.87,179.79,1.9201]
[1747229357445,59.52,179.87,179.85,5.5592]
[1747229357750,59.52,179.87,179.79,1.9201]
[1747229357948,5.5582,179.89,179.8,1.923]
[1747229358149,59.5,179.89,179.8,61.423]
[1747229358337,59.5,179.89,179.87,5.5585]
[1747229358546,59.5,179.89,179.83,59.52]
[1747229358941,59.5,179.89,179.86,5.5587]
[1747229360747,5.558,179.9,179.87,5.5586]
[1747229360952,1.8127,179.91,179.83,59.52]
[1747229361255,61.2927,179.91,179.83,59.52]
[1747229361455,5.5581,179.89,179.83,59.52]
[1747229362053,5.5581,179.89,179.86,5.5588]
[1747229362355,5.5581,179.89,179.83,59.52]
[1747229362548,5.5579,179.9,179.83,59.52]
[1747229362748,61.2927,179.91,179.83,59.52]
[1747229363249,5.5582,179.89,179.86,5.5587]
[1747229363655,61.2927,179.91,179.83,59.52]
[1747229363852,5.5586,179.88,179.85,5.5592]
[1747229364154,71.03375596,179.91,179.83,59.52]
[1747229365654,5.5592,179.86,179.83,65.0797]
[1747229365950,5.5592,179.86,179.83,59.52]
[1747229366250,5.5588,179.87,179.84,5.5595]
[1747229368455,5.5591,179.86,179.84,5.5595]
[1747229368657,5.5591,179.86,179.83,65.0798]
[1747229368859,5.5591,179.86,179.83,59.52]
[1747229369156,5.5591,179.86,179.83,65.0798]
[1747229369958,59.52,179.9,179.83,59.52]
[1747229370358,59.52,179.9,179.85,5.5593]
[1747229370557,5.5588,179.87,179.83,59.52]
[1747229371058,5.5585,179.88,179.85,5.5593]
[1747229374661,59.52,179.9,179.84,5.5595]
[1747229374862,59.52,179.9,179.83,59.52]
[1747229375962,5.5584,179.88,179.85,5.5592]
[1747229376856,5.5584,179.88,179.86,5.559]
[1747229377062,5.5584,179.88,179.83,59.52]
[1747229377265,59.44,179.89,179.83,59.52]
[1747229377762,59.44,179.91,179.83,59.52]
[1747229377962,59.44,179.91,179.84,1.8573]
[1747229378163,59.44,179.91,179.86,5.559]
[1747229378362,5.5583,179.89,179.84,1.8573]
[1747229378759,5.5585,179.88,179.84,1.8573]
[1747229379063,69.18105596,179.91,179.81,59.42]
[1747229379359,69.18105596,179.91,179.83,5.5597]
[1747229379964,69.18105596,179.91,179.81,59.42]
[1747229380464,5.5584,179.88,179.84,5.5594]
[1747229380668,69.18105596,179.91,179.84,5.5594]
[1747229381068,5.5589,179.87,179.84,5.5594]
[1747229381267,69.18105596,179.91,179.83,5.5599]
[1747229381765,5.5593,179.86,179.81,59.42]
[1747229382564,5.5593,179.86,179.83,5.5597]
[1747229384166,5.5593,179.86,179.84,5.5596]
[1747229384566,5.5588,179.87,179.84,5.5596]
[1747229385069,59.42,179.9,179.84,5.5596]
[1747229385268,5.5589,179.87,179.84,5.5596]
[1747229385969,5.559,179.86,179.84,5.5596]
[1747229386371,59.42,179.9,179.85,5.5593]
[1747229386674,59.42,179.9,179.81,59.42]
[1747229386970,5.5583,179.89,179.86,5.5588]
[1747229387870,5.5584,179.88,179.86,5.5588]
[1747229388572,5.5582,179.89,179.86,5.5588]
[1747229388971,59.4,179.9,179.86,5.5588]
[1747229389169,5.5583,179.89,179.81,59.42]
[1747229389674,5.5583,179.89,179.86,5.5588]
[1747229390067,5.5583,179.89,179.81,59.42]
[1747229390271,59.4,179.9,179.81,59.42]
[1747229390473,59.42,179.93,179.81,59.42]
[1747229390971,59.42,179.93,179.81,69.16105596]
[1747229391176,118.8,179.93,179.81,69.16105596]
[1747229391366,59.38,179.93,179.81,69.16105596]
[1747229392075,428.9366,179.94,179.91,5.5574]
[1747229392677,364.0,179.94,179.87,59.42]
[1747229392875,423.38,179.94,179.87,59.42]
[1747229393677,364.0,179.94,179.87,59.42]
[1747229393882,59.38,179.95,179.87,59.42]
[1747229394178,59.38,179.95,179.88,3.5646]
[1747229394676,59.42,179.97,179.88,3.5646]
[1747229394873,118.78,179.97,179.88,3.5646]
[1747229395075,5.556,179.96,179.88,3.5646]
[1747229395379,118.78,179.97,179.88,3.5646]
[1747229395772,64.9156,179.97,179.94,5.5563]
[1747229395973,59.36,179.98,179.88,62.9246]
[1747229396280,64.9154,179.98,179.95,5.556]
[1747229396879,59.36,179.98,179.95,5.556]
[1747229397379,5.5551,179.99,179.92,59.42]
[1747229397576,64.9151,179.99,179.92,59.42]
[1747229398375,64.9151,179.99,179.96,5.5557]
[1747229398576,59.36,179.99,179.96,5.5557]
[1747229399074,624.6941133,180.0,179.96,5.5557]
[1747229399477,5.5552,179.99,179.96,5.5557]
[1747229399671,624.6941133,180.0,179.95,5.5561]
[1747229399877,624.6941133,180.0,179.93,1.8844]
[1747229400081,624.6941133,180.0,179.95,5.556]
[1747229400379,565.3541133,180.0,179.93,1.8844]
[1747229400682,64.8937,180.04,179.93,70.96545596]
[1747229401081,5.553,180.06,179.93,70.96545596]
[1747229401281,59.32,180.07,179.96,9.74105596]
[1747229401482,9.74105596,180.13,179.97,63.0041]
[1747229401785,59.32,180.12,179.99,9.74105596]
[1747229401977,490.02105596,180.16,179.99,9.74105596]
[1747229402175,549.42105596,180.16,180.02,9.74105596]
[1747229402384,59.32,180.15,180.03,120.5172]
[1747229403083,59.4,180.16,180.03,120.5172]
[1747229403286,64.8701,180.15,180.09,5.5518]
[1747229403586,59.32,180.15,180.09,59.4]
[1747229404488,64.8703,180.15,180.1,5.5515]
[1747229404686,59.32,180.15,180.1,5.5515]
[1747229404887,59.32,180.15,180.06,3.6192]
[1747229405088,59.32,180.15,180.07,59.38]
[1747229405782,5.5506,180.14,180.07,59.38]
[1747229405984,59.32,180.15,180.07,59.38]
[1747229406286,9.74105596,180.19,180.07,59.38]
[1747229406685,5.5501,180.15,180.1,5.5515]
[1747229406887,5.5501,180.15,180.07,59.38]
[1747229407084,9.74105596,180.19,180.12,5.5507]
[1747229407288,59.26,180.18,180.09,59.26]
[1747229408589,9.74105596,180.16,180.06,62.8792]
[1747229409089,59.26,180.15,180.06,59.26]
[1747229409289,60.9982,180.15,180.06,64.8128]
[1747229409491,9.74105596,180.13,180.06,59.26]
[1747229409682,59.26,180.12,180.03,1.7972]
[1747229409991,9.74105596,180.1,180.03,1.7972]
[1747229410193,68.98105596,180.1,180.03,1.7972]
[1747229410786,5.5527,180.07,180.03,1.7972]
[1747229410989,68.98105596,180.1,180.03,1.7972]
[1747229411687,68.98105596,180.1,180.0,59.24]
[1747229412089,59.24,180.1,180.0,59.24]
[1747229412286,364.0,180.11,180.01,9.74105596]
[1747229412487,5.5504,180.14,180.04,9.74105596]
[1747229412687,59.24,180.18,180.05,62.9529]
[1747229412992,59.24,180.18,180.09,5.5518]
[1747229413391,59.24,180.18,180.09,59.24]
[1747229413787,364.0,180.2,180.09,59.24]
[1747229414094,59.24,180.24,180.16,5.5495]
[1747229414297,59.24,180.24,180.15,59.24]
[1747229414493,5.5494,180.18,180.15,59.24]
[1747229414994,5.5494,180.18,180.14,64.7903]
[1747229415594,5.5489,180.19,180.15,5.55]
[1747229416399,5.5482,180.21,180.14,59.24]
[1747229416594,59.2,180.23,180.15,1.879]
[1747229416804,59.2,180.23,180.15,3.7759]
[1747229417594,59.2,180.24,180.15,3.7759]
[1747229417793,59.2,180.25,180.15,3.7759]
[1747229417993,5.5482,180.21,180.15,3.7759]
[1747229418897,5.548,180.22,180.18,5.5491]
[1747229419703,59.2,180.25,180.16,5.5494]
[1747229419704,5.5482,180.21,180.16,5.5494]
[1747229419899,5.5482,180.21,180.15,3.7759]
[1747229420099,59.2,180.25,180.15,3.7759]
[1747229420503,5.5485,180.21,180.17,5.5494]
[1747229421003,5.5485,180.21,180.15,3.7759]
[1747229421400,5.5479,180.22,180.15,3.7759]
[1747229421601,59.18,180.24,180.15,3.7759]
[1747229422002,5.5483,180.21,180.17,5.5492]
[1747229422303,59.18,180.24,180.15,3.7759]
[1747229422507,59.18,180.24,180.16,5.5494]
[1747229422804,59.18,180.24,180.15,3.7759]
[1747229423103,423.24,180.26,180.15,3.7759]
[1747229423406,59.16,180.25,180.15,3.7759]
[1747229423598,59.16,180.25,180.21,5.548]
[1747229424000,59.16,180.27,180.21,5.548]
[1747229424298,5.5473,180.24,180.2,64.7684]
[1747229424701,59.16,180.28,180.2,59.22]
[1747229425201,9.74105596,180.26,180.15,3.7759]
[1747229425410,9.74105596,180.26,180.17,59.2]
[1747229425799,9.74105596,180.26,180.15,1.879]
[1747229426003,9.74105596,180.23,180.15,1.879]
[1747229426205,59.14,180.22,180.15,1.879]
[1747229426708,59.14,180.22,180.14,59.2]
[1747229427601,5.5494,180.18,180.14,64.7503]
[1747229427804,59.14,180.22,180.14,64.7503]
[1747229428103,59.14,180.22,180.14,59.2]
[1747229428303,5.5486,180.2,180.17,5.5492]
[1747229428500,423.14,180.24,180.14,59.2]
[1747229428906,5.5481,180.22,180.19,5.5488]
[1747229429107,423.14,180.24,180.14,59.2]
[1747229429406,5.548,180.22,180.18,5.5489]
[1747229429808,364.0,180.24,180.16,59.14]
[1747229430100,118.34,180.29,180.17,11.51265596]
[1747229430305,59.14,180.29,180.17,11.51265596]
[1747229430506,373.74105596,180.32,180.17,491.13265596]
[1747229430709,9.74105596,180.29,180.17,1.7716]
[1747229430908,59.2,180.28,180.17,1.7716]
[1747229431105,5.5483,180.21,180.17,1.7716]
[1747229431305,59.12,180.25,180.17,1.7716]
[1747229431506,59.12,180.25,180.12,1.8334]
[1747229431812,59.12,180.25,180.12,61.0334]
[1747229432109,59.12,180.25,180.16,5.5495]
[1747229432709,9.74105596,180.23,180.12,61.0334]
[1747229433007,59.12,180.25,180.12,61.0334]
[1747229433210,5.5486,180.2,180.12,61.0334]
[1747229433406,59.12,180.25,180.12,61.0334]
[1747229433603,59.12,180.25,180.13,9.74105596]
[1747229433799,365.9243,180.27,180.23,5.5474]
[1747229433800,5.5465,180.27,180.23,5.5474]
[1747229434408,5.5467,180.26,180.23,5.5474]
[1747229434610,59.12,180.29,180.23,5.5474]
[1747229435009,59.12,180.29,180.24,5.5472]
[1747229435816,59.12,180.29,180.25,5.5469]
[1747229436013,59.12,180.31,180.22,59.2]
[1747229436212,482.32,180.32,180.22,59.2]
[1747229436417,1.9068,180.34,180.22,59.2]
[1747229436716,5.5451,180.32,180.22,59.2]
[1747229436912,59.1,180.35,180.3,5.5452]
[1747229437106,59.1,180.35,180.29,59.2]
[1747229437317,5.5442,180.34,180.29,59.2]
[1747229437615,1.8033,180.39,180.29,59.2]
[1747229437815,482.3,180.4,180.29,59.2]
[1747229438111,59.1,180.4,180.29,59.2]
[1747229438318,60.9033,180.44,180.29,59.2]
[1747229438611,5.5415,180.43,180.38,5.5427]
[1747229438815,5.5415,180.43,180.38,64.6427]
[1747229439309,159.23032255,180.54,180.36,15.4571114]
[1747229439513,1.8331,180.51,180.37,119.9483]
[1747229439710,59.1,180.5,180.37,5.5124]
[1747229440013,59.08,180.49,180.37,59.08]
[1747229440220,5.5417,180.43,180.37,59.08]
[1747229440519,59.08,180.43,180.37,59.08]
[1747229440714,59.08,180.43,180.31,1.8058]
[1747229440916,133.6171114,180.43,180.31,1.8058]
[1747229441114,1.8331,180.42,180.31,1.8058]
[1747229441315,1.8331,180.42,180.36,5.5436]
[1747229441515,1.8331,180.42,180.34,59.08]
[1747229442323,5.5435,180.37,180.34,59.08]
[1747229442518,59.08,180.38,180.32,59.08]
[1747229442716,59.08,180.38,180.31,59.08]
[1747229443021,5.5436,180.36,180.32,5.5446]
[1747229443419,59.08,180.38,180.31,59.08]
[1747229443624,5.5438,180.36,180.31,64.6249]
[1747229443820,59.08,180.38,180.31,59.08]
[1747229444729,5.5433,180.37,180.33,5.5442]
[1747229444923,1.8331,180.42,180.33,5.5442]
[1747229445120,59.06,180.41,180.33,5.5442]
[1747229445320,59.06,180.41,180.32,5.5448]
[1747229445521,59.06,180.41,180.31,59.08]
[1747229446430,5.5441,180.35,180.31,64.625]
[1747229446625,423.06,180.41,180.31,59.08]
[1747229447528,364.0,180.4,180.3,5.5454]
[1747229447720,364.0,180.4,180.3,64.6054]
[1747229447916,59.06,180.39,180.3,59.06]
[1747229449126,5.5444,180.34,180.3,64.6054]
[1747229449329,59.06,180.39,180.3,59.06]
[1747229450328,5.5447,180.33,180.3,59.06]
[1747229450626,59.06,180.39,180.3,59.06]
[1747229450822,5.5451,180.32,180.3,59.06]
[1747229451727,59.04,180.34,180.25,1.8058]
[1747229451928,59.04,180.33,180.26,59.06]
[1747229452127,59.04,180.33,180.29,5.5456]
[1747229452324,59.04,180.33,180.26,59.06]
[1747229453025,59.04,180.33,180.25,1.8058]
[1747229453228,74.5171114,180.32,180.2,59.06]
[1747229453421,364.0,180.31,180.2,59.06]
[1747229453626,15.4571114,180.28,180.2,59.06]
[1747229453937,482.1,180.27,180.16,60.9396]
[1747229454123,482.1,180.27,180.13,482.9961]
[1747229454327,15.4571114,180.24,180.14,59.06]
[1747229454523,1.8417,180.23,180.14,59.06]
[1747229454724,59.04,180.22,180.14,59.06]
[1747229455127,59.04,180.22,180.14,60.8985]
[1747229455830,59.04,180.22,180.2,5.5485]
[1747229456033,59.04,180.22,180.14,60.8985]
[1747229456223,59.04,180.22,180.15,1.8976]
[1747229456424,59.04,180.22,180.21,5.5482]
[1747229456828,364.0,180.26,180.19,59.06]
[1747229457026,364.0,180.26,180.2,1.8842]
[1747229457229,364.0,180.26,180.25,5.547]
[1747229457728,59.06,180.28,180.24,64.6072]
[1747229458026,59.06,180.28,180.24,59.06]
[1747229458832,59.06,180.28,180.2,1.8842]
[1747229459135,59.06,180.28,180.18,59.08]
[1747229459336,64.6063,180.28,180.18,59.08]
[1747229459536,59.06,180.28,180.18,59.08]
[1747229459834,5.5475,180.24,180.18,59.08]
[1747229460135,59.06,180.28,180.18,59.08]
[1747229460930,1.7466,180.27,180.2,5.5484]
[1747229461132,1.7466,180.27,180.15,5.4185]
[1747229461340,15.4571114,180.21,180.08,59.08]
[1747229461629,482.14,180.2,180.08,59.08]
[1747229462035,5.5503,180.15,180.08,59.08]
[1747229462233,59.06,180.15,180.08,59.08]
[1747229462438,59.08,180.14,180.05,7.2983]
[1747229462735,59.08,180.14,180.04,59.08]
[1747229463238,59.06,180.15,180.05,59.06]
[1747229463533,59.06,180.15,180.14,5.5504]
[1747229463729,479.42,180.22,180.11,59.1]
[1747229463935,59.08,180.21,180.12,59.1]
[1747229464134,59.08,180.21,180.13,59.1]
[1747229464539,59.08,180.21,180.14,1.8605]
[1747229464732,59.08,180.21,180.2,5.5485]
[1747229464937,423.08,180.25,180.2,5.5485]
[1747229465136,423.08,180.25,180.14,1.8605]
[1747229465137,5.5473,180.24,180.14,1.8605]
[1747229465337,423.08,180.25,180.14,1.8605]
[1747229465638,5.5473,180.24,180.14,1.8605]
[1747229465839,364.0,180.25,180.14,1.8605]
[1747229466044,59.08,180.24,180.14,1.8605]
[1747229466338,5.5482,180.21,180.14,1.8605]
[1747229466540,59.08,180.24,180.14,1.8605]
[1747229467043,59.08,180.24,180.12,59.1]
[1747229467230,5.5497,180.17,180.13,5.5506]
[1747229467433,59.08,180.18,180.12,59.1]
[1747229468434,5.55,180.16,180.12,64.6507]
[1747229468629,5.55,180.16,180.09,60.9663]
[1747229468630,59.08,180.18,180.09,1.8863]
[1747229468829,59.08,180.18,180.07,59.06]